bitfinex-derivatives/quotes_ETHF0:USTF0_20251012
["timestamp","ask_amount","ask_price","bid_price","bid_amount"]
[1760260964077,41.605,3824.2,3824.1,1.27537417]
[1760260964581,41.605,3824.2,3824.1,0.92597417]
[1760260965477,40.8,3824.2,3824.1,1.27537417]
[1760260965675,0.3458,3824.9,3824.8,0.92647]
[1760260965878,0.3458,3824.9,3824.8,1.27587]
[1760260966180,41.3808,3824.9,3824.8,1.27587]
[1760260966877,41.3808,3824.9,3824.8,0.8055]
[1760260967078,41.3808,3824.9,3824.0,3.2078]
[1760260967079,0.4592,3824.2,3824.0,3.2078]
[1760260967276,0.805,3824.2,3824.0,3.67827]
[1760260967470,0.805,3824.2,3824.1,0.92957417]
[1760260967781,0.805,3824.2,3824.1,1.27897417]
[1760260970577,0.805,3824.2,3824.1,0.92957417]
[1760260970782,0.805,3824.2,3824.1,0.45911417]
[1760260971185,0.805,3824.2,3824.1,0.92957417]
[1760260971779,0.3458,3824.2,3824.1,1.27897417]
[1760260971985,0.5808,3824.4,3824.3,1.27593]
[1760260972685,0.3458,3824.7,3824.6,0.8055]
[1760260972989,0.5808,3824.7,3824.6,0.8055]
[1760260973181,0.5808,3824.7,3824.6,1.2759]
[1760260974186,1.34503407,3824.7,3824.6,1.2759]
[1760260974883,0.3458,3824.7,3824.6,1.2759]
[1760260976089,0.5808,3824.7,3824.6,1.2759]
[1760260976984,0.805,3824.7,3824.6,1.2759]
[1760260977188,0.805,3824.7,3824.6,0.6959]
[1760260977582,0.9393,3824.5,3824.4,0.47041]
[1760260977989,0.9393,3824.5,3824.4,0.69591]
[1760260978486,0.9393,3824.5,3824.4,0.47041]
[1760260978987,0.9393,3824.5,3824.4,0.69591]
[1760260979683,0.5935,3824.5,3824.2,0.47044]
[1760260979887,0.805,3824.3,3824.2,0.69594]
[1760260980283,0.805,3824.3,3824.2,0.2255]
[1760260980589,0.805,3824.3,3824.2,0.4561]
[1760260980786,0.805,3824.3,3824.2,0.2255]
[1760260981083,0.805,3824.2,3824.1,0.00301417]
[1760260981289,0.805,3824.2,3824.1,0.22851417]
[1760260981987,0.805,3824.2,3824.1,0.92957417]
[1760260982181,0.3693,3824.5,3824.4,1.27592]
[1760260982383,0.3693,3824.5,3824.4,0.8055]
[1760260982689,0.9393,3824.5,3824.4,0.4561]
[1760260983386,0.9393,3824.5,3824.4,0.92652]
[1760260984185,0.9393,3824.5,3824.4,0.4561]
[1760260986087,0.9393,3824.5,3824.4,0.92652]
[1760260986987,0.235,3824.8,3824.7,1.27588]
[1760260987488,0.5808,3824.8,3824.7,1.27588]
[1760260988088,0.5808,3824.8,3824.7,0.8055]
[1760260990287,0.5808,3824.8,3824.7,1.27588]
[1760260990492,40.8,3824.9,3824.8,0.47037]
[1760260990693,3.2078,3825.4,3825.3,0.47031]
[1760260990889,3.2078,3825.4,3825.3,1.27841]
[1760260991092,4.016,3825.4,3825.3,0.4613]
[1760260991393,0.8082,3824.8,3824.7,0.4613]
[1760260991581,0.1387,3825.0,3824.7,0.8081]
[1760260991783,0.376,3825.0,3824.9,0.4613]
[1760260991989,0.1387,3824.5,3824.2,0.47044]
[1760260992188,0.47038,3824.8,3824.3,0.93173]
[1760260992392,0.70768,3824.8,3824.7,0.8081]
[1760260992794,0.93178,3824.8,3824.7,0.8081]
[1760260993095,1.27858,3824.8,3824.7,0.4613]
[1760260993989,1.27858,3824.8,3824.7,0.2333]
[1760260994188,0.8082,3824.8,3824.7,1.27848]
[1760260994388,40.9387,3825.0,3824.8,0.47037]
[1760260994582,42.21725,3825.0,3824.9,0.2333]
[1760260994981,42.21725,3825.0,3824.6,0.47039]
[1760260995189,0.4614,3824.7,3824.6,0.93169]
[1760260995492,0.8082,3824.7,3824.6,0.93169]
[1760260995888,0.8082,3824.7,3824.6,0.4613]
[1760260996094,0.8082,3824.2,3824.1,3.44411417]
[1760260996285,0.8082,3824.2,3824.1,0.93477417]
[1760260996686,0.8082,3824.2,3824.1,0.23631417]
[1760260996993,0.8082,3824.2,3824.1,0.93477417]
[1760260997394,41.6082,3824.2,3824.1,0.93477417]
[1760260997996,42.07865,3824.2,3824.1,0.00301417]
[1760260999591,41.6082,3824.2,3824.1,0.46431417]
[1760260999794,40.8,3824.2,3824.1,1.28157417]
[1760261000394,42.07865,3824.2,3824.1,0.00301417]
[1760261000701,45.28645,3824.2,3824.1,0.00301417]
[1760261001593,44.816,3824.2,3824.1,0.46431417]
[1760261001794,45.28645,3824.2,3824.1,0.81111417]
[1760261001990,44.3546,3824.2,3824.1,1.28157417]
[1760261002188,41.3841,3824.2,3824.1,1.28157417]
[1760261002392,41.6082,3824.2,3824.1,0.93477417]
[1760261003199,41.6082,3824.2,3824.1,1.28157417]
[1760261003695,41.3841,3824.2,3824.1,1.28157417]
[1760261003998,3.6933,3825.0,3824.8,0.47036]
[1760261004296,3.8079,3825.0,3824.4,0.81721]
[1760261004494,0.81722,3824.4,3824.1,3.21081417]
[1760261004699,0.8082,3824.2,3824.1,0.93477417]
[1760261004992,0.3468,3824.2,3824.1,1.28157417]
[1760261005394,41.2614,3824.9,3824.8,0.4613]
[1760261006096,41.6082,3824.9,3824.8,0.4613]
[1760261006298,42.07856,3824.9,3824.6,0.47039]
[1760261006491,0.9469,3824.5,3824.4,0.2333]
[1760261006893,0.9469,3824.5,3824.4,0.4613]
[1760261007100,0.9469,3824.5,3824.4,1.27852]
[1760261007302,0.7228,3824.5,3824.4,1.27852]
[1760261007499,0.47042,3824.4,3824.1,3.21081417]
[1760261007703,0.8082,3824.2,3824.1,0.00301417]
[1760261008301,41.3841,3824.2,3824.1,1.28157417]
[1760261008504,40.8,3824.2,3824.1,4.48937417]
[1760261009797,0.5841,3824.9,3824.8,0.93167]
[1760261010202,41.3841,3824.9,3824.8,0.93167]
[1760261010903,41.6082,3824.9,3824.8,0.4613]
[1760261011105,41.6082,3824.9,3824.8,0.2333]
[1760261011402,41.6082,3824.9,3824.8,0.70367]
[1760261011599,41.6082,3824.9,3824.8,0.93167]
[1760261012402,41.3841,3824.9,3824.8,1.27847]
[1760261012601,41.6082,3824.9,3824.8,0.93167]
[1760261012806,41.6082,3824.9,3824.8,0.70367]
[1760261015100,41.6082,3824.9,3824.8,0.93167]
[1760261015905,40.8,3824.9,3824.8,1.27847]
[1760261017105,41.6082,3824.9,3824.8,0.70367]
[1760261017504,41.6082,3824.9,3824.8,1.27847]
[1760261018510,41.6082,3824.9,3824.8,0.93167]
[1760261019006,41.6082,3824.9,3824.8,1.27847]
[1760261019911,41.3841,3824.9,3824.8,1.27847]
[1760261020705,41.6267,3824.9,3824.8,0.4613]
[1760261021008,0.8108,3824.7,3824.5,3.67821]
[1760261021206,0.93901,3824.5,3824.1,3.68127417]
[1760261021403,0.1387,3824.5,3824.4,0.47042]
[1760261021607,41.27037,3824.9,3824.8,0.2352]
[1760261021608,41.75127,3824.9,3824.8,0.2352]
[1760261022111,0.5682,3824.6,3824.5,1.2774]
[1760261022307,0.81,3824.6,3824.5,0.807]
[1760261022507,0.5682,3824.6,3824.5,1.27741]
[1760261022714,0.5682,3824.6,3824.1,4.38696417]
[1760261022715,0.81,3824.6,3824.3,0.47043]
[1760261022905,0.3476,3824.3,3824.1,3.68126417]
[1760261023107,0.8186,3824.2,3824.1,3.91526417]
[1760261023608,40.8,3824.9,3824.7,0.4742]
[1760261023808,40.8,3824.9,3824.8,0.8183]
[1760261024109,0.2292,3824.2,3824.1,3.44481417]
[1760261024314,0.5768,3824.2,3824.1,4.49957417]
[1760261024629,0.8186,3824.2,3824.1,3.91527417]
[1760261024812,0.8186,3824.2,3824.1,4.15547417]
[1760261025213,0.8186,3824.2,3824.1,3.21081417]
[1760261025517,0.8186,3824.2,3824.1,3.68127417]
[1760261025810,41.6186,3824.2,3824.1,3.91527417]
[1760261026711,42.08905,3824.2,3824.1,0.00301417]
[1760261026919,41.6186,3824.2,3824.1,0.00301417]
[1760261027113,42.08905,3824.2,3824.1,0.00301417]
[1760261029714,41.6186,3824.2,3824.1,0.00301417]
[1760261030020,42.08905,3824.2,3824.1,0.00301417]
[1760261031519,41.6186,3824.2,3824.1,1.29177417]
[1760261031713,41.3768,3824.2,3824.1,1.29177417]
[1760261031912,41.6186,3824.2,3824.1,0.47347417]
[1760261032221,41.6186,3824.2,3824.1,0.94767417]
[1760261032815,41.6186,3824.2,3824.1,1.29177417]
[1760261033315,41.3768,3824.2,3824.1,1.29177417]
[1760261033521,40.8,3824.2,3824.1,6.29177417]
[1760261035418,3.2078,3824.9,3824.7,0.47038]
[1760261035614,3.2078,3824.9,3824.5,0.8145]
[1760261035615,3.6788,3824.9,3824.5,0.8145]
[1760261035821,0.8186,3824.7,3824.6,0.7044]
[1760261036107,41.6186,3824.7,3824.6,0.9446]
[1760261036823,41.6186,3824.7,3824.6,0.4742]
[1760261037020,41.6186,3824.7,3824.6,0.7044]
[1760261037323,41.6186,3824.7,3824.6,1.2887]
[1760261037925,40.8,3824.7,3824.6,1.2887]
[1760261038717,41.271,3824.7,3824.5,0.47041]
[1760261038919,41.271,3824.7,3824.6,0.7044]
[1760261039417,41.6186,3824.7,3824.6,0.7044]
[1760261042425,41.6186,3824.7,3824.6,0.9446]
[1760261042623,41.6186,3824.7,3824.6,1.2887]
[1760261042926,41.6186,3824.7,3824.6,0.7044]
[1760261043929,42.08898,3824.7,3824.6,0.234]
[1760261044126,0.471,3824.2,3824.1,0.00301417]
[1760261044427,0.8186,3824.2,3824.1,0.23701417]
[1760261044626,0.47036,3824.9,3824.3,1.28873]
[1760261044925,0.2292,3824.8,3824.7,0.47038]
[1760261045126,0.5768,3824.8,3824.7,0.94458]
[1760261045333,0.8186,3824.8,3824.7,0.4742]
[1760261045524,0.2292,3824.2,3824.1,0.94767417]
[1760261045830,0.2292,3824.2,3824.1,1.29177417]
[1760261045831,0.5768,3824.2,3824.1,1.29177417]
[1760261046234,0.1405,3824.5,3824.4,0.47042]
[1760261046432,0.3697,3824.5,3824.4,0.94462]
[1760261046628,0.6115,3824.5,3824.4,0.94462]
[1760261046827,0.9591,3824.5,3824.4,0.94462]
[1760261049931,0.9591,3824.5,3824.4,0.70442]
[1760261050130,0.9591,3824.5,3824.4,0.47042]
[1760261051333,0.9591,3824.5,3824.4,0.94272]
[1760261051535,0.9591,3824.5,3824.4,1.27162]
[1760261052235,0.9591,3824.5,3824.4,0.94272]
[1760261052437,0.9591,3824.5,3824.4,0.47042]
[1760261052738,0.9591,3824.5,3824.4,0.70582]
[1760261053238,0.9591,3824.5,3824.4,0.94272]
[1760261053435,0.334,3824.4,3824.1,0.47346417]
[1760261053734,0.6115,3824.5,3824.1,0.47346417]
[1760261053735,0.7874,3824.2,3824.1,0.00301417]
[1760261054327,41.5874,3824.2,3824.1,0.23841417]
[1760261054646,41.5874,3824.2,3824.1,0.94577417]
[1760261054930,40.8,3824.2,3824.1,1.27467417]
[1760261057037,41.134,3824.2,3824.1,1.27467417]
[1760261060234,40.8,3824.2,3824.1,1.27467417]
[1760261060731,41.134,3824.2,3824.1,1.27467417]
[1760261061933,41.5874,3824.2,3824.1,0.47347417]
[1760261062338,41.5874,3824.2,3824.1,0.70887417]
[1760261063041,41.5874,3824.2,3824.1,0.23841417]
[1760261063238,41.5874,3824.2,3824.1,0.70887417]
[1760261063543,41.5874,3824.2,3824.1,0.94577417]
[1760261064537,40.8,3824.2,3824.1,1.27467417]
[1760261065039,41.134,3824.2,3824.1,1.27467417]
[1760261065239,41.3534,3824.2,3824.1,1.27467417]
[1760261066036,40.8,3824.2,3824.1,1.27467417]
[1760261066237,0.334,3824.9,3824.8,0.47037]
[1760261066537,0.5534,3824.9,3824.8,1.27157]
[1760261066731,41.3534,3824.9,3824.8,1.27157]
[1760261067441,41.5874,3824.9,3824.8,1.27157]
[1760261067642,41.5874,3824.9,3824.8,0.94267]
[1760261068038,0.143,3824.5,3824.3,3.2078]
[1760261068235,0.7874,3824.4,3824.3,3.67823]
[1760261068438,0.7874,3824.4,3824.3,0.47043]
[1760261068841,41.5874,3824.4,3824.3,0.47043]
[1760261069436,41.5874,3824.4,3824.3,0.94273]
[1760261069641,41.5874,3824.4,3824.3,1.27163]
[1760261071342,40.8,3824.4,3824.3,1.27163]
[1760261072843,41.3534,3824.4,3824.3,1.27163]
[1760261073444,40.8,3824.4,3824.3,1.27163]
[1760261073634,41.3534,3824.4,3824.3,1.27163]
[1760261074642,41.134,3824.4,3824.3,1.27163]
[1760261074841,40.8,3824.4,3824.3,1.27163]
[1760261075849,0.334,3825.1,3825.0,1.27155]
[1760261076145,3.7612,3825.2,3825.1,1.27154]
[1760261076339,45.33387781,3825.2,3825.1,1.27154]
[1760261076541,40.8,3825.2,3825.1,1.27154]
[1760261076845,40.8,3825.2,3825.1,4.47934]
[1760261077444,0.5534,3825.9,3825.8,0.8012]
[1760261077646,0.5534,3825.9,3825.8,1.27145]
[1760261077843,41.5874,3825.9,3825.6,0.47026]
[1760261078045,0.4534,3825.7,3825.6,0.2354]
[1760261078246,0.7874,3825.7,3825.6,0.94257]
[1760261078441,0.7874,3825.7,3825.6,1.27147]
[1760261078839,41.134,3825.9,3825.8,1.27145]
[1760261079237,41.134,3825.9,3825.8,0.8012]
[1760261079238,41.3534,3825.9,3825.8,0.8012]
[1760261079535,41.3534,3825.9,3825.8,1.27145]
[1760261079741,40.8,3825.9,3825.8,1.27145]
[1760261080040,41.6428,3825.9,3825.8,0.70565]
[1760261080639,41.6428,3825.9,3825.8,0.94505]
[1760261081548,41.6428,3825.9,3825.8,1.29945]
[1760261081849,40.8,3825.9,3825.8,1.29945]
[1760261082248,41.6064,3825.9,3825.8,0.94505]
[1760261082448,41.6064,3825.9,3825.8,0.47025]
[1760261082948,41.6064,3825.9,3825.8,0.69415]
[1760261083948,41.3741,3825.9,3825.8,1.26365]
[1760261084252,40.8,3825.9,3825.8,1.26365]
[1760261088554,0.00229979,3826.0,3825.9,0.93324]
[1760261088753,0.00229979,3826.0,3825.9,1.26364]
[1760261089151,40.80229979,3826.0,3825.9,1.26364]
[1760261090458,41.15759979,3826.0,3825.9,1.26364]
[1760261091049,41.37639979,3826.0,3825.9,1.26364]
[1760261091346,0.2188,3825.8,3825.7,3.90196]
[1760261091650,0.8064,3825.8,3825.7,3.2078]
[1760261091855,0.8064,3824.8,3824.7,3.2078]
[1760261092047,0.8064,3824.4,3824.3,4.14123]
[1760261092243,40.8,3824.4,3824.3,4.14123]
[1760261092547,40.8,3824.4,3824.3,4.47163]
[1760261093250,40.8,3824.4,3824.1,0.00301417]
[1760261093251,46.6064,3824.4,3824.1,0.00301417]
[1760261093655,47.07682,3824.4,3824.1,0.00301417]
[1760261094054,0.47044,3824.3,3824.1,0.00301417]
[1760261094255,0.8064,3824.2,3824.1,0.00301417]
[1760261099860,5.8064,3824.2,3824.1,0.00301417]
[1760261100060,46.6064,3824.2,3824.1,0.47347417]
[1760261100373,41.6064,3824.2,3824.1,0.00301417]
[1760261100668,42.07685,3824.2,3824.1,0.00301417]
[1760261101067,42.07685,3824.2,3824.1,0.47347417]
[1760261101068,41.6064,3824.2,3824.1,0.47347417]
[1760261101270,41.6064,3824.2,3824.1,0.69737417]
[1760261101467,41.6064,3824.2,3824.1,0.93647417]
[1760261101671,41.6064,3824.2,3824.1,1.26687417]
[1760261101863,41.3741,3824.2,3824.1,1.26687417]
[1760261102061,40.8,3824.2,3824.1,1.26687417]
[1760261102259,0.3553,3824.6,3824.5,0.47041]
[1760261102459,3.7819,3824.9,3824.8,0.93337]
[1760261102665,44.0078,3824.9,3824.8,1.26377]
[1760261103371,40.8,3824.9,3824.8,6.26377]
[1760261105173,3.2078,3825.4,3825.3,0.80071]
[1760261105372,3.2078,3825.8,3825.7,1.26366]
[1760261105766,0.00229979,3826.0,3825.9,1.26364]
[1760261106160,40.80229979,3826.0,3825.9,1.26364]
[1760261106361,41.15759979,3826.0,3825.9,4.47144]
[1760261106573,41.15759979,3826.0,3825.9,1.26364]
[1760261106866,41.15759979,3826.0,3825.9,9.47144]
[1760261106867,0.00229979,3826.0,3825.9,9.47144]
[1760261107060,0.3553,3826.8,3826.7,0.93314]
[1760261107263,0.3553,3826.8,3826.7,1.26354]
[1760261107475,40.8,3826.8,3826.7,1.26354]
[1760261108071,40.80227787,3826.8,3826.7,1.26354]
[1760261111965,41.13797787,3826.8,3826.7,1.26354]
[1760261112469,41.60477787,3826.8,3826.7,1.26354]
[1760261112674,0.8025,3826.6,3826.5,0.47016]
[1760261112870,0.8025,3826.6,3826.5,0.92926]
[1760261113576,0.8025,3826.6,3826.5,0.47016]
[1760261113765,0.4668,3826.4,3826.3,0.70838]
[1760261113971,0.8025,3826.4,3826.3,0.70838]
[1760261115677,0.8025,3826.4,3826.3,0.92928]
[1760261117081,3.4332,3826.7,3826.6,0.4591]
[1760261117374,3.4332,3826.7,3826.6,0.92925]
[1760261117569,4.0103,3826.7,3826.6,0.92925]
[1760261118877,0.2254,3825.9,3825.8,4.13715]
[1760261119177,0.4668,3826.4,3826.3,0.2382]
[1760261119379,0.8025,3826.4,3826.3,0.2382]
[1760261119879,0.8025,3826.4,3826.3,0.47019]
[1760261120179,0.8025,3826.3,3826.2,0.4702]
[1760261120776,0.5611,3826.3,3826.2,1.2871]
[1760261121678,0.8025,3826.3,3826.2,0.9293]
[1760261122379,0.8025,3826.3,3826.2,0.4702]
[1760261123783,0.8025,3825.9,3825.8,3.67805]
[1760261124380,41.6025,3825.9,3825.8,3.91625]
[1760261124578,40.8,3825.9,3825.8,9.49495]
[1760261125178,3.7689,3826.7,3826.6,0.92925]
[1760261125378,4.0103,3826.7,3826.6,0.4591]
[1760261125580,44.8103,3826.7,3826.6,0.4591]
[1760261126087,44.8103,3826.7,3826.6,1.28705]
[1760261126385,0.3357,3826.6,3826.5,0.69106]
[1760261126585,0.3357,3826.6,3826.5,1.28706]
[1760261126878,44.0078,3826.7,3826.6,0.82795]
[1760261127084,44.0078,3826.7,3826.6,1.28705]
[1760261128284,44.3435,3826.7,3826.6,1.28705]
[1760261128486,44.5689,3826.7,3826.6,1.28705]
[1760261128982,41.3611,3826.7,3826.6,1.28705]
[1760261130184,41.3611,3826.7,3826.6,0.92925]
[1760261130485,40.8,3826.7,3826.6,1.28705]
[1760261131787,41.1357,3826.7,3826.6,1.28705]
[1760261132479,41.1357,3826.7,3826.3,0.70838]
[1760261132480,0.5611,3826.4,3826.3,0.70838]
[1760261132687,0.8025,3826.4,3826.3,0.70839]
[1760261132888,0.8025,3826.4,3826.3,0.92929]
[1760261133385,0.8025,3826.4,3826.3,0.4591]
[1760261133687,0.8025,3826.1,3826.0,3.67802]
[1760261134292,41.6025,3826.1,3826.0,3.91622]
[1760261135191,41.6025,3826.1,3826.0,0.70842]
[1760261137289,0.9422,3826.0,3825.9,0.47024]
[1760261140993,0.9422,3826.0,3825.9,0.70844]
[1760261141595,0.9422,3826.0,3825.9,0.47024]
[1760261142496,0.9422,3826.0,3825.9,0.70264]
[1760261143998,0.4619,3825.4,3825.3,0.4703]
[1760261144292,0.8125,3825.4,3825.3,0.4703]
[1760261144593,0.2347,3824.4,3824.3,3.7829]
[1760261144895,0.8125,3824.4,3824.3,4.13583]
[1760261146391,41.6125,3824.4,3824.3,0.70283]
[1760261146697,41.6125,3824.4,3824.3,0.47043]
[1760261146897,41.6125,3824.4,3824.1,0.00301417]
[1760261147095,0.93235,3824.2,3824.1,0.00301417]
[1760261147298,0.8125,3824.2,3824.1,0.23541417]
[1760261147504,0.8125,3824.2,3824.1,0.70587417]
[1760261147698,41.6125,3824.2,3824.1,0.70587417]
[1760261147997,41.6125,3824.2,3824.1,0.00301417]
[1760261148704,41.6125,3824.2,3824.1,0.23541417]
[1760261149697,41.6125,3824.2,3824.1,0.00301417]
[1760261150196,41.6125,3824.2,3824.1,0.47347417]
[1760261151904,40.8,3824.2,3824.1,1.27377417]
[1760261153103,41.3853,3824.2,3824.1,1.27377417]
[1760261155306,41.3853,3824.2,3824.1,4.48157417]
[1760261155808,40.8,3824.2,3824.1,4.48157417]
[1760261156505,3.2078,3824.9,3824.8,0.47037]
[1760261156709,0.3506,3825.1,3825.0,0.47035]
[1760261156911,0.3506,3825.1,3825.0,0.92795]
[1760261157214,41.3853,3825.1,3825.0,1.27065]
[1760261157710,41.3853,3825.1,3824.7,0.47038]
[1760261157711,0.8125,3824.8,3824.7,0.47038]
[1760261158008,0.8125,3824.8,3824.7,0.70278]
[1760261158510,0.8125,3824.8,3824.7,0.92798]
[1760261158702,0.8125,3824.8,3824.7,0.2324]
[1760261158902,0.8125,3824.8,3824.5,3.2078]
[1760261158903,0.5853,3824.7,3824.6,0.47039]
[1760261159109,0.8125,3824.7,3824.6,0.92799]
[1760261159605,0.4619,3824.2,3824.1,0.47347417]
[1760261159912,0.8125,3824.2,3824.1,1.27377417]
[1760261160604,40.8,3824.2,3824.1,1.27377417]
[1760261160814,41.3853,3824.2,3824.1,1.27377417]
[1760261161308,41.6125,3824.2,3824.1,0.93107417]
[1760261162904,40.8,3824.2,3824.1,1.27377417]
[1760261163613,41.1506,3824.2,3824.1,1.27377417]
[1760261163805,41.3853,3824.2,3824.1,1.27377417]
[1760261164006,41.1506,3824.2,3824.1,1.27377417]
[1760261164499,41.6125,3824.2,3824.1,0.93107417]
[1760261164702,41.6125,3824.2,3824.1,0.47347417]
[1760261168318,41.6125,3824.2,3824.1,0.70587417]
[1760261168612,40.8,3824.2,3824.1,1.27377417]
[1760261168812,0.3506,3824.8,3824.7,1.27068]
[1760261169015,0.5853,3824.8,3824.7,4.47848]
[1760261169216,41.3853,3824.8,3824.7,4.47848]
[1760261169620,41.6125,3824.8,3824.7,3.67818]
[1760261169917,41.6125,3824.8,3824.7,3.91058]
[1760261170808,41.6125,3824.8,3824.3,3.2078]
[1760261171004,0.5857,3824.5,3824.4,0.2416]
[1760261171209,0.5857,3824.5,3824.3,3.2078]
[1760261171409,0.8026,3824.2,3824.1,0.00301417]
[1760261171916,1.27305,3824.2,3824.1,0.00301417]
[1760261172117,42.07305,3824.2,3824.1,0.00301417]
[1760261172306,41.6026,3824.2,3824.1,0.00301417]
[1760261172512,41.6026,3824.2,3824.1,0.47347417]
[1760261173108,41.6026,3824.2,3823.8,3.2078]
[1760261173310,0.7202,3823.0,3822.9,4.4741]
[1760261173515,0.357,3823.0,3822.9,4.4741]
[1760261173914,41.7427,3823.0,3822.9,4.1416]
[1760261174113,41.7427,3823.0,3822.9,3.92]
[1760261174315,41.74568082,3823.0,3822.9,3.92281354]
[1760261174521,41.74568082,3823.0,3822.9,3.68121354]
[1760261174817,41.74568082,3823.0,3822.9,3.92281354]
[1760261175015,41.74568082,3823.0,3822.9,4.14441354]
[1760261175723,41.74568082,3823.0,3822.9,3.68121354]
[1760261176420,41.74568082,3823.0,3822.9,4.14441354]
[1760261176623,41.38308082,3823.0,3822.9,4.47691354]
[1760261176815,41.38308082,3823.0,3822.9,3.21061354]
[1760261176816,41.74568082,3823.0,3822.9,3.21061354]
[1760261177219,46.74568082,3823.0,3822.9,2.73639048]
[1760261177413,0.1401,3822.5,3822.2,3.2078]
[1760261177614,0.8026,3822.3,3822.2,3.67849]
[1760261178313,41.6026,3822.3,3822.2,3.68105162]
[1760261179718,0.14308082,3823.0,3822.5,1.17663]
[1760261179922,0.5801,3823.3,3823.2,0.93377]
[1760261180812,41.38195369,3823.3,3823.2,0.93377]
[1760261181018,41.60445369,3823.3,3823.2,0.47057]
[1760261182024,41.60445369,3823.3,3823.2,0.71217]
[1760261182924,41.60445369,3823.3,3823.2,1.26627]
[1760261182925,40.80185369,3823.3,3823.2,1.26627]
[1760261183322,0.00185369,3823.3,3823.2,1.26627]
[1760261184225,0.35885369,3823.3,3823.2,1.26627]
[1760261184425,0.58195369,3823.3,3823.2,1.26627]
[1760261186520,0.80445369,3823.3,3823.2,0.93377]
[1760261186722,0.80445369,3823.3,3823.2,0.47057]
[1760261187226,0.80445369,3823.3,3823.2,0.71217]
[1760261188422,0.80445369,3823.3,3823.2,0.93377]
[1760261188622,0.80445369,3823.3,3823.2,0.47057]
[1760261188822,0.80445369,3823.3,3823.2,0.93377]
[1760261189023,0.80445369,3823.3,3823.2,1.26627]
[1760261190230,0.00185369,3823.3,3823.2,1.26627]
[1760261190719,40.8,3823.7,3823.6,1.26622]
[1760261190925,40.8,3823.7,3823.6,4.47402]
[1760261191325,41.6026,3823.7,3823.6,3.67832]
[1760261191527,41.6026,3823.7,3823.6,3.2078]
[1760261191729,0.1401,3823.5,3823.2,0.47056]
[1760261192032,0.8026,3823.3,3823.2,0.47056]
[1760261192525,0.357,3823.2,3822.2,1.22480041]
[1760261192730,0.357,3822.9,3822.7,3.67843]
[1760261192924,0.1401,3823.0,3822.7,3.2078]
[1760261193234,0.357,3822.4,3822.3,0.47067]
[1760261193424,0.1401,3822.5,3822.2,3.21036162]
[1760261193733,0.357,3822.4,3822.3,0.47068]
[1760261193933,0.1401,3822.5,3822.2,3.21036162]
[1760261194135,0.357,3822.4,3822.2,3.21036162]
[1760261194831,0.1401,3822.5,3822.2,3.21036162]
[1760261195232,0.357,3822.4,3822.2,3.21036162]
[1760261195432,0.357,3822.4,3822.3,0.47068]
[1760261196236,0.357,3822.4,3822.3,0.80318]
[1760261196831,0.357,3822.4,3822.3,0.47068]
[1760261197642,0.357,3822.4,3822.2,0.00256162]
[1760261197940,0.1401,3822.5,3822.2,0.47325162]
[1760261198234,0.1401,3822.0,3821.8,3.2078]
[1760261198435,0.9427,3821.5,3821.4,3.67858]
[1760261198837,41.7427,3821.5,3821.4,3.67858]
[1760261199237,41.7427,3821.5,3821.4,3.68187361]
[1760261200341,41.7427,3821.5,3821.4,3.92347361]
[1760261200643,40.8,3821.5,3821.4,4.50217361]
[1760261202132,41.1282,3821.5,3821.4,4.50217361]
[1760261203143,40.8,3821.5,3821.4,4.50217361]
[1760261203637,0.1401,3822.5,3821.9,0.476]
[1760261203841,0.5495,3822.2,3822.1,0.9467]
[1760261204245,41.3495,3822.2,3822.1,0.9467]
[1760261204644,41.3495,3822.2,3822.1,1.2906]
[1760261205043,41.3495,3822.2,3822.1,0.9467]
[1760261206345,0.9289,3821.5,3821.4,3.21109361]
[1760261206554,0.9289,3821.5,3821.4,0.00329361]
[1760261206851,5.9289,3821.5,3821.4,0.00329361]
[1760261207037,46.73948,3821.5,3821.4,0.00329361]
[1760261207352,0.1405,3821.0,3820.9,3.2078]
[1760261207645,0.3282,3820.9,3820.8,0.47086]
[1760261208045,41.1282,3820.9,3820.8,0.47086]
[1760261208242,41.1282,3820.9,3819.9,1.17745]
[1760261208243,0.4687,3820.5,3820.4,0.47091]
[1760261208450,0.4687,3820.5,3820.4,0.47329893]
[1760261209044,41.2687,3820.5,3820.4,0.47329893]
[1760261209451,41.2687,3820.5,3820.4,0.00238893]
[1760261210549,46.2687,3820.5,3820.4,0.00238893]
[1760261211648,41.2687,3820.5,3820.4,0.00238893]
[1760261213253,41.7289,3820.5,3820.4,0.00238893]
[1760261214056,41.7289,3820.5,3820.4,0.47329893]
[1760261214752,0.47092,3820.4,3820.1,3.2078]
[1760261215054,0.7884,3820.1,3820.0,0.47096]
[1760261215753,0.7884,3820.1,3817.5,11.89688]
[1760261215754,0.1405,3818.0,3817.8,0.0261931]
[1760261215963,0.1405,3819.5,3817.8,0.0261931]
[1760261215964,0.3282,3818.4,3818.3,0.47117]
[1760261216149,41.1282,3818.4,3818.3,0.47117]
[1760261216356,41.13024631,3818.4,3818.3,0.47117]
[1760261216557,0.3282,3818.3,3817.8,0.07479875]
[1760261216856,0.3282,3817.9,3817.8,0.54602875]
[1760261217250,0.3282,3817.9,3817.8,0.50044581]
[1760261219163,0.3282,3817.9,3817.8,0.84434581]
[1760261219364,41.13024631,3818.4,3818.3,0.47117]
[1760261219560,40.80204631,3818.4,3817.8,0.37311581]
[1760261219856,0.3282,3818.3,3817.8,0.37311581]
[1760261220054,0.3282,3818.3,3818.2,0.47118]
[1760261220762,0.3282,3818.3,3818.2,0.81508]
[1760261221062,40.80204631,3818.4,3818.3,0.3439]
[1760261221357,0.3282,3818.3,3818.0,0.4712]